[Event "MČR juniorů a juniorek v rapid šachu 2024"]
[Site "Hotel Fit Fun, Harrachov, Czech Republic"]
[Date "2024.09.21"]
[Round "6.15"]
[White "Bartak Josef"]
[Black "Andrle Filip"]
[Result "1-0"]
[TimeControl "20+5"]
[WhiteFideId "23712252"]
[BlackFideId "23718749"]
[WhiteElo "1902"]
[BlackElo "1789"]

1. e4 {[%clk 00:20:07]} {[%emt 00:00:02]} d5 {[%clk 00:20:09]} {[%emt
00:00:02]} 2. exd5 {[%clk 00:20:10]} {[%emt 00:00:02]} Qxd5 {[%clk 00:20:11]} 3.
Nc3 {[%clk 00:20:14]} {[%emt 00:00:03]} Qe5+ {[%emt 00:00:03]} 4. Be2 {[%clk
00:20:18]} Bg4 {[%clk 00:20:18]} {[%emt 00:00:01]} 5. d4 {[%clk 00:20:19]}
{[%emt 00:00:05]} Bxe2 {[%clk 00:20:20]} {[%emt 00:00:03]} 6. Ngxe2 {[%clk
00:20:22]} {[%emt 00:00:01]} Qa5 {[%clk 00:20:23]} {[%emt 00:00:03]} 7. O-O
{[%clk 00:20:24]} {[%emt 00:00:02]} Nf6 {[%clk 00:20:24]} {[%emt 00:00:04]} 8.
d5 {[%clk 00:20:12]} {[%emt 00:00:18]} c6 {[%clk 00:19:59]} {[%emt 00:00:30]} 9.
Nf4 {[%clk 00:20:15]} {[%emt 00:00:01]} cxd5 {[%clk 00:19:34]} {[%emt
00:00:30]} 10. Nfxd5 {[%clk 00:20:18]} {[%emt 00:00:02]} Nxd5 {[%clk 00:19:32]}
{[%emt 00:00:07]} 11. Nxd5 {[%clk 00:19:48]} {[%emt 00:00:35]} e6 {[%clk
00:18:22]} {[%emt 00:01:15]} 12. Re1 {[%clk 00:19:52]} {[%emt 00:00:02]} Bd6
{[%clk 00:17:51]} {[%emt 00:00:35]} 13. b4 {[%clk 00:17:34]} {[%emt 00:02:23]}
Qd8 {[%clk 00:16:04]} {[%emt 00:01:52]} 14. Bb2 {[%clk 00:15:43]} {[%emt
00:01:57]} Qg5 {[%clk 00:13:08]} {[%emt 00:03:00]} 15. Nf6+ {[%clk 00:12:50]}
{[%emt 00:02:58]} gxf6 {[%clk 00:12:35]} {[%emt 00:00:38]} 16. Qxd6 {[%clk
00:12:53]} {[%emt 00:00:03]} Nc6 {[%clk 00:09:43]} {[%emt 00:02:57]} 17. b5
{[%clk 00:09:51]} {[%emt 00:03:07]} Rg8 {[%clk 00:08:44]} {[%emt 00:01:03]} 18.
g3 {[%clk 00:09:27]} {[%emt 00:00:29]} Rd8 {[%clk 00:08:01]} {[%emt 00:00:49]}
19. Qc7 {[%clk 00:05:39]} {[%emt 00:03:52]} Nd4 {[%clk 00:06:25]} {[%emt
00:01:41]} 20. Ba3 {[%clk 00:03:42]} {[%emt 00:02:03]} f5 {[%clk 00:06:02]}
{[%emt 00:00:27]} 21. Qxb7 {[%clk 00:03:35]} {[%emt 00:00:13]} Rd7 {[%clk
00:05:23]} {[%emt 00:00:44]} 22. Qa8+ {[%clk 00:03:09]} {[%emt 00:00:31]} Qd8
{[%clk 00:05:11]} {[%emt 00:00:16]} 23. Qxd8+ {[%clk 00:01:15]} {[%emt
00:02:00]} Rxd8 {[%clk 00:05:13]} {[%emt 00:00:03]} 24. Red1 {[%clk 00:01:13]}
{[%emt 00:00:08]} Nxb5 {[%clk 00:04:13]} {[%emt 00:01:05]} 25. Bb4 {[%clk
00:00:41]} {[%emt 00:00:37]} Rg4 {[%clk 00:03:16]} {[%emt 00:01:02]} 26. Rxd8+
{[%clk 00:00:30]} {[%emt 00:00:17]} Kxd8 {[%clk 00:03:13]} {[%emt 00:00:07]} 27.
Rd1+ {[%clk 00:00:34]} {[%emt 00:00:02]} Kc8 {[%clk 00:02:29]} {[%emt
00:00:49]} 28. c3 {[%clk 00:00:14]} {[%emt 00:00:25]} Rc4 {[%clk 00:02:18]}
{[%emt 00:00:16]} 29. Rd3 {[%clk 00:00:18]} {[%emt 00:00:02]} Nc7 {[%clk
00:02:08]} {[%emt 00:00:14]} 30. Ba5 {[%clk 00:00:15]} {[%emt 00:00:09]} Nd5
{[%clk 00:02:07]} {[%emt 00:00:06]} 31. Rd4 {[%clk 00:00:17]} {[%emt 00:00:03]}
Rxd4 {[%clk 00:01:17]} {[%emt 00:00:54]} 32. cxd4 {[%clk 00:00:21]} Kb7 {[%clk
00:01:08]} {[%emt 00:00:15]} 33. Bd2 {[%clk 00:00:14]} {[%emt 00:00:13]} Ka6
{[%clk 00:01:01]} {[%emt 00:00:13]} 34. Kf1 {[%clk 00:00:15]} {[%emt 00:00:03]}
Kb5 {[%clk 00:01:04]} {[%emt 00:00:02]} 35. Ke2 {[%clk 00:00:19]} Kc4 {[%clk
00:01:06]} {[%emt 00:00:03]} 36. Be3 {[%clk 00:00:17]} {[%emt 00:00:07]} Nc3+
{[%clk 00:01:01]} {[%emt 00:00:10]} 37. Kf3 {[%clk 00:00:22]} {[%emt 00:00:01]}
Nxa2 {[%clk 00:01:03]} {[%emt 00:00:02]} 38. d5 {[%clk 00:00:24]} {[%emt
00:00:03]} Kxd5 {[%clk 00:00:59]} {[%emt 00:00:09]} 39. Bxa7 {[%clk 00:00:27]}
{[%emt 00:00:02]} Nc3 {[%clk 00:00:48]} {[%emt 00:00:15]} 40. Kf4 {[%clk
00:00:26]} {[%emt 00:00:07]} f6 {[%clk 00:00:42]} {[%emt 00:00:11]} 41. Bb6
{[%clk 00:00:18]} {[%emt 00:00:13]} Ne2+ {[%clk 00:00:41]} {[%emt 00:00:05]} 42.
Kf3 {[%clk 00:00:21]} {[%emt 00:00:02]} Nd4+ {[%clk 00:00:41]} {[%emt
00:00:05]} 43. Ke3 {[%clk 00:00:23]} {[%emt 00:00:03]} Nc6 {[%clk 00:00:39]}
{[%emt 00:00:08]} 44. Bc7 {[%clk 00:00:24]} {[%emt 00:00:03]} Ne5 {[%clk
00:00:27]} {[%emt 00:00:17]} 45. Bd8 {[%clk 00:00:26]} {[%emt 00:00:03]} Ng4+
{[%clk 00:00:28]} {[%emt 00:00:04]} 46. Ke2 {[%clk 00:00:28]} {[%emt 00:00:02]}
Ke5 {[%clk 00:00:17]} {[%emt 00:00:17]} 47. h3 {[%clk 00:00:31]} {[%emt
00:00:02]} Nh6 {[%clk 00:00:20]} {[%emt 00:00:03]} 48. f4+ {[%clk 00:00:35]}
{[%emt 00:00:02]} Ke4 {[%clk 00:00:22]} {[%emt 00:00:02]} 49. Bxf6 {[%clk
00:00:39]} {[%emt 00:00:02]} Nf7 {[%clk 00:00:20]} {[%emt 00:00:05]} 50. Be7
{[%clk 00:00:42]} {[%emt 00:00:04]} Nh8 {[%clk 00:00:13]} {[%emt 00:00:11]} 51.
Kf2 {[%clk 00:00:44]} {[%emt 00:00:04]} Ng6 {[%clk 00:00:15]} {[%emt 00:00:02]}
52. Bd6 {[%clk 00:00:47]} {[%emt 00:00:03]} h5 {[%clk 00:00:15]} {[%emt
00:00:05]} 53. Ke2 {[%clk 00:00:42]} {[%emt 00:00:10]} Nh8 {[%clk 00:00:13]}
{[%emt 00:00:07]} 54. Kf2 {[%clk 00:00:40]} {[%emt 00:00:07]} Ng6 {[%clk
00:00:15]} {[%emt 00:00:03]} 55. Ke2 {[%clk 00:00:24]} {[%emt 00:00:20]} h4
{[%clk 00:00:15]} {[%emt 00:00:06]} 56. gxh4 {[%clk 00:00:20]} {[%emt
00:00:09]} Nxf4+ {[%clk 00:00:15]} {[%emt 00:00:04]} 57. Kf2 {[%clk 00:00:16]}
{[%emt 00:00:09]} Nh5 {[%clk 00:00:17]} {[%emt 00:00:03]} 58. Bh2 {[%clk
00:00:10]} {[%emt 00:00:11]} f4 {[%clk 00:00:16]} {[%emt 00:00:06]} 59. Kg2
{[%clk 00:00:14]} {[%emt 00:00:02]} Ke3 {[%clk 00:00:17]} {[%emt 00:00:04]} 60.
Bg1+ {[%clk 00:00:17]} Ke2 {[%clk 00:00:18]} {[%emt 00:00:05]} 61. Bd4 {[%clk
00:00:17]} {[%emt 00:00:05]} f3 {[%clk 00:00:16]} {[%emt 00:00:06]} 62. Kg1
{[%clk 00:00:20]} {[%emt 00:00:02]} e5 {[%clk 00:00:19]} {[%emt 00:00:03]} 63.
Bf2 {[%clk 00:00:12]} {[%emt 00:00:11]} e4 {[%clk 00:00:21]} {[%emt 00:00:05]}
64. Bd4 {[%clk 00:00:07]} {[%emt 00:00:09]} e3 {[%clk 00:00:22]} {[%emt
00:00:04]} 65. Be5 {[%clk 00:00:06]} {[%emt 00:00:07]} f2+ {[%clk 00:00:24]}
{[%emt 00:00:02]} 66. Kh2 {[%clk 00:00:10]} f1=Q {[%clk 00:00:25]} {[%emt
00:00:04]} 67. Bf4 {[%clk 00:00:10]} {[%emt 00:00:05]} Qxf4 {[%clk 00:00:27]}
{[%emt 00:00:03]} 68. Kg2 {[%clk 00:00:13]} {[%emt 00:00:02]} Qg3 {[%clk
00:00:28]} {[%emt 00:00:04]} 69. Kh1 {[%clk 00:00:17]} {[%emt 00:00:01]} Qxh3+
{[%clk 00:00:30]} {[%emt 00:00:04]} 70. Kg1 {[%clk 00:00:20]} Qg4+ {[%clk
00:00:32]} {[%emt 00:00:03]} 71. Kh1 {[%clk 00:00:24]} {[%emt 00:00:01]} Kf2
{[%clk 00:00:35]} {[%emt 00:00:02]} 72. Kh2 {[%clk 00:00:28]} Qg2 {[%clk
00:00:38]} {[%emt 00:00:04]} 1-0



[ePGN "0.1;DGT LiveChess/2.2.6"]

[Event "MČR juniorů a juniorek v rapid šachu 2024"]
[Site "Hotel Fit Fun, Harrachov, Czech Republic"]
[Date "2024.09.21"]
[Round "6.16"]
[White "Martinkovic Adam"]
[Black "Hrazdira Matyas Josef"]
[Result "1/2-1/2"]
[TimeControl "20+5"]
[WhiteFideId "23728019"]
[BlackFideId "23732954"]
[WhiteElo "1841"]
[BlackElo "1786"]

1. d4 {[%clk 00:20:07]} {[%emt 00:00:02]} Nf6 {[%clk 00:20:09]} {[%emt
00:00:02]} 2. Nf3 {[%clk 00:20:10]} {[%emt 00:00:02]} d5 {[%clk 00:19:59]}
{[%emt 00:00:15]} 3. c4 {[%clk 00:20:07]} {[%emt 00:00:08]} e6 {[%clk
00:19:58]} {[%emt 00:00:06]} 4. g3 {[%clk 00:20:08]} {[%emt 00:00:04]} Bb4+
{[%clk 00:19:52]} {[%emt 00:00:11]} 5. Bd2 {[%clk 00:20:08]} {[%emt 00:00:05]}
Be7 {[%clk 00:19:53]} {[%emt 00:00:04]} 6. Bg2 {[%clk 00:19:53]} {[%emt
00:00:20]} O-O {[%clk 00:19:56]} {[%emt 00:00:03]} 7. O-O {[%clk 00:19:55]}
{[%emt 00:00:02]} c5 {[%clk 00:17:12]} {[%emt 00:02:49]} 8. cxd5 {[%clk
00:19:05]} {[%emt 00:00:56]} exd5 {[%clk 00:16:58]} {[%emt 00:00:18]} 9. Bc3
{[%clk 00:17:35]} {[%emt 00:01:35]} c4 {[%clk 00:15:54]} {[%emt 00:01:10]} 10.
b3 {[%clk 00:15:54]} {[%emt 00:01:46]} b5 {[%clk 00:15:49]} {[%emt 00:00:09]}
11. bxc4 {[%clk 00:15:32]} {[%emt 00:00:27]} bxc4 {[%clk 00:15:47]} {[%emt
00:00:07]} 12. Ne5 {[%clk 00:14:31]} {[%emt 00:01:06]} Bb7 {[%clk 00:14:36]}
{[%emt 00:01:16]} 13. Nd2 {[%clk 00:14:17]} {[%emt 00:00:19]} Nc6 {[%clk
00:13:26]} {[%emt 00:01:15]} 14. Rb1 {[%clk 00:13:33]} {[%emt 00:00:49]} Qc7
{[%clk 00:13:06]} {[%emt 00:00:25]} 15. Nxc6 {[%clk 00:13:26]} {[%emt
00:00:13]} Bxc6 {[%clk 00:13:02]} {[%emt 00:00:09]} 16. Qc2 {[%clk 00:12:39]}
{[%emt 00:00:51]} Rfe8 {[%clk 00:12:23]} {[%emt 00:00:44]} 17. Rfe1 {[%clk
00:11:04]} {[%emt 00:01:41]} Bf8 {[%clk 00:11:36]} {[%emt 00:00:51]} 18. e4
{[%clk 00:10:45]} {[%emt 00:00:24]} dxe4 {[%clk 00:10:43]} {[%emt 00:00:58]} 19.
Nxe4 {[%clk 00:10:32]} {[%emt 00:00:18]} Nxe4 {[%clk 00:10:43]} {[%emt
00:00:05]} 20. Bxe4 {[%clk 00:10:35]} {[%emt 00:00:03]} Bxe4 {[%clk 00:10:44]}
{[%emt 00:00:04]} 21. Rxe4 {[%clk 00:10:38]} {[%emt 00:00:02]} Qc6 {[%clk
00:10:13]} {[%emt 00:00:37]} 22. Ree1 {[%clk 00:09:50]} {[%emt 00:00:52]} g6
{[%clk 00:09:28]} {[%emt 00:00:50]} 23. Ba1 {[%clk 00:06:45]} {[%emt 00:03:10]}
Bg7 {[%clk 00:09:11]} {[%emt 00:00:21]} 24. Rbd1 {[%clk 00:04:21]} {[%emt
00:02:29]} 1/2-1/2



[ePGN "0.1;DGT LiveChess/2.2.6"]

[Event "MČR juniorů a juniorek v rapid šachu 2024"]
[Site "Hotel Fit Fun, Harrachov, Czech Republic"]
[Date "2024.09.21"]
[Round "6.17"]
[White "Rybacek Martin"]
[Black "Jun Robert"]
[Result "1-0"]
[TimeControl "20+5"]
[WhiteFideId "23739266"]
[BlackFideId "23709510"]
[WhiteElo "1831"]
[BlackElo "1681"]

1. Nf3 {[%clk 00:20:05]} {[%emt 00:00:05]} d5 {[%clk 00:20:09]} {[%emt
00:00:01]} 2. g3 {[%clk 00:20:08]} {[%emt 00:00:02]} c5 {[%clk 00:20:13]}
{[%emt 00:00:01]} 3. Bg2 {[%clk 00:20:10]} {[%emt 00:00:04]} Nc6 {[%clk
00:20:17]} {[%emt 00:00:01]} 4. d4 {[%clk 00:20:12]} {[%emt 00:00:03]} cxd4
{[%clk 00:20:14]} {[%emt 00:00:08]} 5. Nxd4 {[%clk 00:20:15]} {[%emt 00:00:01]}
Nf6 {[%clk 00:20:18]} {[%emt 00:00:01]} 6. O-O {[%clk 00:20:10]} {[%emt
00:00:10]} e5 {[%clk 00:20:21]} {[%emt 00:00:03]} 7. Nxc6 {[%clk 00:20:13]}
{[%emt 00:00:02]} bxc6 {[%clk 00:20:25]} 8. c4 {[%clk 00:20:12]} {[%emt
00:00:06]} Bc5 {[%clk 00:20:25]} {[%emt 00:00:05]} 9. Nc3 {[%clk 00:20:10]}
{[%emt 00:00:06]} Bb7 {[%clk 00:20:27]} {[%emt 00:00:03]} 10. cxd5 {[%clk
00:18:32]} {[%emt 00:01:44]} cxd5 {[%clk 00:19:59]} {[%emt 00:00:33]} 11. Bg5
{[%clk 00:18:34]} {[%emt 00:00:02]} e4 {[%clk 00:19:29]} {[%emt 00:00:36]} 12.
Rc1 {[%clk 00:16:17]} {[%emt 00:02:22]} O-O {[%clk 00:18:57]} {[%emt 00:00:36]}
13. Bxf6 {[%clk 00:15:56]} {[%emt 00:00:27]} gxf6 {[%clk 00:18:48]} {[%emt
00:00:14]} 14. Nxe4 {[%clk 00:14:40]} {[%emt 00:01:20]} dxe4 {[%clk 00:18:29]}
{[%emt 00:00:24]} 15. Rxc5 {[%clk 00:14:17]} {[%emt 00:00:29]} Qxd1 {[%clk
00:18:06]} {[%emt 00:00:28]} 16. Rxd1 {[%clk 00:14:19]} {[%emt 00:00:02]} Rfd8
{[%clk 00:18:10]} 17. Rdc1 {[%clk 00:12:24]} {[%emt 00:02:02]} Rd2 {[%clk
00:18:08]} {[%emt 00:00:07]} 18. R5c2 {[%clk 00:12:22]} {[%emt 00:00:07]} Rad8
{[%clk 00:18:09]} {[%emt 00:00:03]} 19. h4 {[%clk 00:12:23]} {[%emt 00:00:04]}
Ba6 {[%clk 00:17:11]} {[%emt 00:01:03]} 20. Bxe4 {[%clk 00:11:48]} {[%emt
00:00:40]} Bxe2 {[%clk 00:16:45]} {[%emt 00:00:30]} 21. Kg2 {[%clk 00:10:13]}
{[%emt 00:01:40]} R8d4 {[%clk 00:16:27]} {[%emt 00:00:23]} 22. Rxd2 {[%clk
00:09:39]} {[%emt 00:00:40]} Rxd2 {[%clk 00:16:28]} {[%emt 00:00:03]} 23. Rc2
{[%clk 00:09:39]} {[%emt 00:00:06]} Bd3 {[%clk 00:16:15]} {[%emt 00:00:17]} 24.
Rxd2 {[%clk 00:09:31]} {[%emt 00:00:13]} Bxe4+ {[%clk 00:16:19]} {[%emt
00:00:02]} 25. f3 {[%clk 00:09:34]} {[%emt 00:00:02]} Bc6 {[%clk 00:16:22]}
{[%emt 00:00:01]} 26. Rd6 {[%clk 00:09:32]} {[%emt 00:00:07]} 1-0



[ePGN "0.1;DGT LiveChess/2.2.6"]

[Event "MČR juniorů a juniorek v rapid šachu 2024"]
[Site "Hotel Fit Fun, Harrachov, Czech Republic"]
[Date "2024.09.21"]
[Round "6.18"]
[White "Koranda Kosma"]
[Black "Urbansky Stepan"]
[Result "0-1"]
[TimeControl "20+5"]
[WhiteFideId "23772948"]
[BlackFideId "23761741"]
[WhiteElo "1884"]
[BlackElo "1837"]

1. e4 {[%clk 00:20:07]} {[%emt 00:00:03]} c5 {[%clk 00:20:09]} {[%emt
00:00:02]} 2. Nf3 {[%clk 00:20:10]} {[%emt 00:00:01]} d6 {[%clk 00:20:13]} 3.
Bb5+ {[%clk 00:20:14]} Nd7 {[%clk 00:20:16]} {[%emt 00:00:02]} 4. d4 {[%clk
00:20:16]} {[%emt 00:00:03]} cxd4 {[%clk 00:20:19]} {[%emt 00:00:02]} 5. Nxd4
{[%clk 00:20:19]} {[%emt 00:00:02]} Ngf6 {[%clk 00:20:12]} {[%emt 00:00:12]} 6.
Nc3 {[%clk 00:20:20]} {[%emt 00:00:05]} e6 {[%clk 00:19:54]} {[%emt 00:00:23]}
7. O-O {[%clk 00:20:04]} {[%emt 00:00:20]} Be7 {[%clk 00:19:50]} {[%emt
00:00:09]} 8. Be3 {[%clk 00:19:44]} {[%emt 00:00:25]} O-O {[%clk 00:19:32]}
{[%emt 00:00:23]} 9. Be2 {[%clk 00:19:27]} {[%emt 00:00:22]} Nc5 {[%clk
00:18:46]} {[%emt 00:00:51]} 10. Bf3 {[%clk 00:19:09]} {[%emt 00:00:23]} e5
{[%clk 00:17:19]} {[%emt 00:01:33]} 11. Ndb5 {[%clk 00:18:20]} {[%emt
00:00:53]} a6 {[%clk 00:15:52]} {[%emt 00:01:32]} 12. Na3 {[%clk 00:18:10]}
{[%emt 00:00:15]} b5 {[%clk 00:15:24]} {[%emt 00:00:34]} 13. Nd5 {[%clk
00:16:24]} {[%emt 00:01:50]} Nfxe4 {[%clk 00:13:55]} {[%emt 00:01:34]} 14.
Nxe7+ {[%clk 00:15:51]} {[%emt 00:00:38]} Qxe7 {[%clk 00:12:13]} {[%emt
00:02:51]} 15. Bxc5 {[%clk 00:16:45]} {[%emt 00:00:06]} dxc5 {[%clk 00:10:58]}
{[%emt 00:01:20]} 16. Bxe4 {[%clk 00:16:42]} {[%emt 00:00:08]} Rb8 {[%clk
00:11:01]} {[%emt 00:00:03]} 17. Qh5 {[%clk 00:15:45]} {[%emt 00:01:02]} g6
{[%clk 00:10:46]} {[%emt 00:00:20]} 18. Qh6 {[%clk 00:15:34]} {[%emt 00:00:14]}
f5 {[%clk 00:10:48]} {[%emt 00:00:04]} 19. Bd3 {[%clk 00:14:52]} {[%emt
00:00:44]} c4 {[%clk 00:10:23]} {[%emt 00:00:34]} 20. Be2 {[%clk 00:14:41]}
{[%emt 00:00:16]} e4 {[%clk 00:10:27]} {[%emt 00:00:01]} 21. f3 {[%clk
00:12:26]} {[%emt 00:02:21]} Qc5+ {[%clk 00:09:47]} {[%emt 00:00:45]} 22. Kh1
{[%clk 00:12:08]} {[%emt 00:00:22]} Bb7 {[%clk 00:09:50]} {[%emt 00:00:01]} 23.
fxe4 {[%clk 00:11:18]} {[%emt 00:00:55]} Bxe4 {[%clk 00:09:53]} {[%emt
00:00:03]} 24. Bf3 {[%clk 00:11:11]} {[%emt 00:00:11]} Qb4 {[%clk 00:08:46]}
{[%emt 00:01:14]} 25. Rad1 {[%clk 00:06:18]} {[%emt 00:04:57]} Rbd8 {[%clk
00:08:14]} {[%emt 00:00:37]} 26. Qc1 {[%clk 00:04:20]} {[%emt 00:02:02]} Qa4
{[%clk 00:07:08]} {[%emt 00:01:12]} 27. Rxd8 {[%clk 00:02:59]} {[%emt
00:01:26]} Rxd8 {[%clk 00:07:11]} {[%emt 00:00:02]} 28. Rd1 {[%clk 00:02:40]}
{[%emt 00:00:23]} Rxd1+ {[%clk 00:06:38]} {[%emt 00:00:39]} 29. Qxd1 {[%clk
00:02:40]} {[%emt 00:00:04]} c3 {[%clk 00:06:40]} {[%emt 00:00:04]} 30. Qd8+
{[%clk 00:02:16]} {[%emt 00:00:29]} Kg7 {[%clk 00:06:38]} {[%emt 00:00:07]} 31.
Qe7+ {[%clk 00:02:14]} {[%emt 00:00:06]} Kh6 {[%clk 00:06:36]} {[%emt
00:00:08]} 32. Qf8+ {[%clk 00:01:42]} {[%emt 00:00:36]} Kg5 {[%clk 00:06:14]}
{[%emt 00:00:27]} 33. h4+ {[%clk 00:01:04]} {[%emt 00:00:43]} Kxh4 {[%clk
00:04:59]} {[%emt 00:01:19]} 34. Qh6+ {[%clk 00:00:58]} {[%emt 00:00:11]} Kg3
{[%clk 00:05:03]} {[%emt 00:00:01]} 35. Qg5+ {[%clk 00:00:58]} {[%emt
00:00:03]} Kf2 {[%clk 00:05:04]} {[%emt 00:00:05]} 36. Qh4+ {[%clk 00:00:54]}
{[%emt 00:00:10]} Kf1 {[%clk 00:04:46]} {[%emt 00:00:23]} 37. Qh2 {[%clk
00:00:24]} {[%emt 00:00:31]} Bxf3 {[%clk 00:04:44]} {[%emt 00:00:11]} 38. gxf3
{[%clk 00:00:17]} {[%emt 00:00:10]} cxb2 {[%clk 00:04:38]} {[%emt 00:00:12]} 39.
Qg1+ {[%clk 00:00:14]} {[%emt 00:00:09]} Ke2 {[%clk 00:04:41]} {[%emt
00:00:02]} 40. Nb1 {[%clk 00:00:13]} {[%emt 00:00:06]} Qh4+ {[%clk 00:04:26]}
{[%emt 00:00:19]} 41. Qh2+ {[%clk 00:00:07]} {[%emt 00:00:11]} Qxh2+ {[%clk
00:04:29]} {[%emt 00:00:02]} 42. Kxh2 {[%clk 00:00:12]} Kd1 {[%clk 00:04:28]}
{[%emt 00:00:07]} 43. Na3 {[%clk 00:00:07]} {[%emt 00:00:10]} Kc1 {[%clk
00:04:27]} {[%emt 00:00:06]} 44. Kg3 {[%clk 00:00:07]} {[%emt 00:00:05]} b1=Q
{[%clk 00:04:30]} {[%emt 00:00:02]} 45. Nxb1 {[%clk 00:00:09]} {[%emt
00:00:03]} Kxb1 {[%clk 00:04:33]} {[%emt 00:00:01]} 46. a4 {[%clk 00:00:14]}
bxa4 {[%clk 00:04:36]} {[%emt 00:00:02]} 47. c4 {[%clk 00:00:18]} a3 {[%clk
00:04:39]} {[%emt 00:00:02]} 48. c5 {[%clk 00:00:22]} a2 {[%clk 00:04:43]}
{[%emt 00:00:01]} 49. c6 {[%clk 00:00:27]} a1=Q {[%clk 00:04:45]} {[%emt
00:00:03]} 50. c7 {[%clk 00:00:30]} {[%emt 00:00:01]} Qc3 {[%clk 00:04:49]}
{[%emt 00:00:02]} 0-1



[ePGN "0.1;DGT LiveChess/2.2.6"]

[Event "MČR juniorů a juniorek v rapid šachu 2024"]
[Site "Hotel Fit Fun, Harrachov, Czech Republic"]
[Date "2024.09.21"]
[Round "6.19"]
[White "Siles Jan"]
[Black "Hyam Robin"]
[Result "1-0"]
[TimeControl "20+5"]
[WhiteFideId "23715405"]
[BlackFideId "23773413"]
[WhiteElo "1873"]
[BlackElo "1571"]

1. d4 {[%clk 00:20:06]} {[%emt 00:00:03]} f5 {[%clk 00:19:55]} {[%emt
00:00:15]} 2. b3 {[%clk 00:20:00]} {[%emt 00:00:11]} Nf6 {[%clk 00:19:56]}
{[%emt 00:00:04]} 3. Bb2 {[%clk 00:20:04]} {[%emt 00:00:02]} g6 {[%clk
00:19:59]} {[%emt 00:00:02]} 4. g3 {[%clk 00:19:52]} {[%emt 00:00:17]} Bg7
{[%clk 00:20:03]} 5. Bg2 {[%clk 00:19:56]} {[%emt 00:00:01]} O-O {[%clk
00:20:06]} {[%emt 00:00:01]} 6. Nd2 {[%clk 00:19:59]} {[%emt 00:00:02]} d6
{[%clk 00:20:11]} {[%emt 00:00:01]} 7. Ngf3 {[%clk 00:19:25]} {[%emt 00:00:39]}
Qe8 {[%clk 00:19:12]} {[%emt 00:01:04]} 8. O-O {[%clk 00:18:57]} {[%emt
00:00:32]} Nc6 {[%clk 00:17:35]} {[%emt 00:01:42]} 9. Re1 {[%clk 00:18:24]}
{[%emt 00:00:38]} e5 {[%clk 00:17:29]} {[%emt 00:00:11]} 10. dxe5 {[%clk
00:18:08]} {[%emt 00:00:22]} dxe5 {[%clk 00:17:27]} {[%emt 00:00:07]} 11. e4
{[%clk 00:18:05]} {[%emt 00:00:07]} fxe4 {[%clk 00:16:01]} {[%emt 00:01:31]} 12.
Ng5 {[%clk 00:17:46]} {[%emt 00:00:24]} Bg4 {[%clk 00:15:36]} {[%emt 00:00:29]}
13. Qb1 {[%clk 00:17:03]} {[%emt 00:00:49]} Rd8 {[%clk 00:13:33]} {[%emt
00:02:08]} 14. Ndxe4 {[%clk 00:16:38]} {[%emt 00:00:30]} Nxe4 {[%clk 00:12:48]}
{[%emt 00:00:51]} 15. Nxe4 {[%clk 00:16:26]} {[%emt 00:00:16]} Qf7 {[%clk
00:11:25]} {[%emt 00:01:28]} 16. Ba3 {[%clk 00:15:15]} {[%emt 00:01:16]} Rfe8
{[%clk 00:10:47]} {[%emt 00:00:43]} 17. Bf1 {[%clk 00:14:22]} {[%emt 00:00:59]}
Nd4 {[%clk 00:09:17]} {[%emt 00:01:35]} 18. Ng5 {[%clk 00:12:15]} {[%emt
00:02:11]} Nf3+ {[%clk 00:09:06]} {[%emt 00:00:16]} 19. Nxf3 {[%clk 00:12:16]}
{[%emt 00:00:03]} Bxf3 {[%clk 00:08:39]} {[%emt 00:00:33]} 20. Qc1 {[%clk
00:10:48]} {[%emt 00:01:33]} Bc6 {[%clk 00:07:18]} {[%emt 00:01:26]} 21. Bc4
{[%clk 00:10:29]} {[%emt 00:00:24]} Bd5 {[%clk 00:07:22]} {[%emt 00:00:01]} 22.
Bxd5 {[%clk 00:10:21]} {[%emt 00:00:14]} Rxd5 {[%clk 00:06:25]} {[%emt
00:01:01]} 23. Qe3 {[%clk 00:09:34]} {[%emt 00:00:51]} b6 {[%clk 00:05:57]}
{[%emt 00:00:34]} 24. Bb2 {[%clk 00:09:01]} {[%emt 00:00:38]} e4 {[%clk
00:05:32]} {[%emt 00:00:30]} 25. Bxg7 {[%clk 00:08:22]} {[%emt 00:00:45]} Kxg7
{[%clk 00:05:21]} {[%emt 00:00:15]} 26. Rad1 {[%clk 00:08:13]} {[%emt
00:00:13]} Rde5 {[%clk 00:04:00]} {[%emt 00:01:27]} 27. Rd4 {[%clk 00:07:46]}
{[%emt 00:00:32]} Qf3 {[%clk 00:03:45]} {[%emt 00:00:20]} 28. Rd7+ {[%clk
00:07:11]} {[%emt 00:00:41]} Kg8 {[%clk 00:03:08]} {[%emt 00:00:41]} 29. Rxc7
{[%clk 00:06:34]} {[%emt 00:00:42]} Qg4 {[%clk 00:01:25]} {[%emt 00:01:47]} 30.
Rxa7 {[%clk 00:05:39]} {[%emt 00:01:02]} Qh3 {[%clk 00:01:04]} {[%emt
00:00:25]} 31. Qc3 {[%clk 00:04:51]} {[%emt 00:00:54]} Qh6 {[%clk 00:00:13]}
{[%emt 00:00:55]} 32. Qc7 {[%clk 00:03:01]} {[%emt 00:01:55]} R5e7 {[%clk
00:00:07]} {[%emt 00:00:11]} 33. Qxb6 {[%clk 00:02:48]} {[%emt 00:00:18]} e3
{[%clk 00:00:08]} {[%emt 00:00:04]} 34. Rxe7 {[%clk 00:02:25]} {[%emt
00:00:28]} Rxe7 {[%clk 00:00:07]} {[%emt 00:00:07]} 35. Rxe3 {[%clk 00:02:08]}
{[%emt 00:00:21]} Rxe3 {[%clk 00:00:11]} {[%emt 00:00:02]} 36. Qxe3 {[%clk
00:02:12]} Qxe3 {[%clk 00:00:15]} 37. fxe3 {[%emt 00:00:01]} 1-0



[ePGN "0.1;DGT LiveChess/2.2.6"]